fUST/lending_fUST_20250603
["ID","MTS","AMOUNT","RATE_DAILY","PERIOD"]
[363904315,1748917839809,-440.0,0.0001726,2]
[363904316,1748917839821,-440.0,0.0001726,2]
[363904317,1748917839831,-440.0,0.0001726,2]
[363904318,1748917839841,-513.89,0.0001726,2]
[363904319,1748917839851,-440.0,0.0001726,2]
[363904320,1748917839861,-576.76,0.0001726,2]
[363904321,1748917839872,-2271.48,0.0001726,2]
[363904322,1748917839881,-483.51,0.0001726,2]
[363904323,1748917839891,-440.0,0.0001726,2]
[363904324,1748917839901,-1052.03,0.0001726,2]
[363904325,1748917839912,-440.0,0.0001726,2]
[363904326,1748917839922,-881.31,0.0001726,2]
[363904327,1748917839932,-675.32,0.0001726,2]
[363904328,1748917839942,-1552.34,0.0001726,2]
[363904329,1748917839952,-440.0,0.0001726,2]
[363904330,1748917839962,-640.89,0.0001726,2]
[363904331,1748917839972,-440.0,0.0001726,2]
[363904332,1748917839982,-440.0,0.0001726,2]
[363904333,1748917839992,-440.0,0.0001726,2]
[363904334,1748917840001,-440.0,0.0001726,2]
[363904335,1748917840011,-547.92,0.0001726,2]
[363904336,1748917840021,-440.0,0.0001726,2]
[363904337,1748917840032,-731.19,0.0001726,2]
[363904338,1748917840042,-440.0,0.0001726,2]
[363904339,1748917840052,-440.0,0.0001726,2]
[363904340,1748917840062,-440.0,0.0001726,2]
[363904341,1748917840071,-1452.05,0.0001726,2]
[363904342,1748917840081,-500.0,0.00017427,2]
[363904344,1748917840091,-9083.75118593,0.00017429,2]
[363904345,1748917840099,-440.0,0.00017532,2]
[363904346,1748917840107,-440.0,0.00017532,2]
[363904347,1748917840115,-646.83,0.00017532,2]
[363904348,1748917840123,-649.39,0.00017532,2]
[363904349,1748917840131,-815.64,0.00017532,2]
[363904350,1748917840139,-1571.32,0.00017532,2]
[363904351,1748917840148,-582.54,0.00017533,2]
[363904352,1748917840158,-440.0,0.00017534,2]
[363904353,1748917840168,-440.0,0.00017534,2]
[363904354,1748917840177,-440.0,0.00017534,2]
[363904355,1748917840187,-513.89,0.00017534,2]
[363904356,1748917840198,-440.0,0.00017534,2]
[363904357,1748917840208,-576.76,0.00017534,2]
[363904358,1748917840218,-2271.48,0.00017534,2]
[363904359,1748917840228,-483.51,0.00017534,2]
[363904360,1748917840238,-440.0,0.00017534,2]
[363904361,1748917840247,-1052.03,0.00017534,2]
[363904362,1748917840258,-440.0,0.00017534,2]
[363904363,1748917840267,-881.31,0.00017534,2]
[363904364,1748917840277,-675.32,0.00017534,2]
[363904365,1748917840287,-1552.34,0.00017534,2]
[363904367,1748917840297,-440.0,0.00017534,2]
[363904369,1748917840307,-640.89,0.00017534,2]
[363904371,1748917840316,-440.0,0.00017534,2]
[363904372,1748917840325,-440.0,0.00017534,2]
[363904374,1748917840335,-440.0,0.00017534,2]
[363904375,1748917840345,-440.0,0.00017534,2]
[363904376,1748917840354,-547.92,0.00017534,2]
[363904377,1748917840363,-440.0,0.00017534,2]
[363904378,1748917840372,-731.19,0.00017534,2]
[363904379,1748917840383,-440.0,0.00017534,2]
[363904380,1748917840395,-440.0,0.00017534,2]
[363904381,1748917840405,-440.0,0.00017534,2]
[363904382,1748917840415,-1452.05,0.00017534,2]
[363904383,1748917840425,-297.60904732,0.00017644,2]
[363904384,1748917840435,-440.0,0.00017806,2]
[363904385,1748917840444,-440.24965603,0.00017806,2]
[363904386,1748917840454,-646.83,0.00017806,2]
[363904388,1748917840464,-649.39,0.00017806,2]
[363904390,1748917840474,-815.64,0.00017806,2]
[363904392,1748917840483,-1571.32,0.00017806,2]
[363904394,1748917840492,-582.54,0.00017807,2]
[363904397,1748917840503,-544.93,0.00017808,2]
[363904399,1748917840513,-440.0,0.00017808,2]
[363904401,1748917840523,-440.0,0.00017808,2]
[363904403,1748917840532,-513.89,0.00017808,2]
[363904405,1748917840542,-440.0,0.00017808,2]
[363904407,1748917840551,-576.76,0.00017808,2]
[363904408,1748917840561,-2271.48,0.00017808,2]
[363904410,1748917840574,-483.51,0.00017808,2]
[363904412,1748917840584,-440.0,0.00017808,2]
[363904414,1748917840594,-1052.03,0.00017808,2]
[363904416,1748917840604,-162.16560943,0.00017808,2]
[363904418,1748917840614,-881.31,0.00017808,2]
[363904420,1748917840623,-675.32,0.00017808,2]
[363904422,1748917840633,-1552.34,0.00017808,2]
[363904424,1748917840642,-440.0,0.00017808,2]
[363904427,1748917840654,-640.89,0.00017808,2]
[363904429,1748917840664,-440.0,0.00017808,2]
[363904431,1748917840673,-542.76806273,0.00017808,2]
[363904433,1748917840683,-440.0,0.00017808,2]
[363904435,1748917840693,-440.0,0.00017808,2]
[363904437,1748917840702,-547.92,0.00017808,2]
[363904439,1748917840712,-440.0,0.00017808,2]
[363904441,1748917840721,-731.19,0.00017808,2]
[363904443,1748917840730,-440.0,0.00017808,2]
[363904445,1748917840740,-440.0,0.00017808,2]
[363904447,1748917840750,-440.0,0.00017808,2]
[363904449,1748917840760,-1452.05,0.00017808,2]
[363904451,1748917840771,-1921.19291074,0.000179,2]
[363904453,1748917840780,-500.0,0.00017933,2]
[363904455,1748917840788,-247.0,0.00017963,2]
[363904457,1748917840798,-193.77934823,0.00017975,2]
[363904459,1748917840807,-500.22395642,0.00018078,2]
[363904461,1748917840817,-440.0,0.0001808,2]
[363904463,1748917840827,-646.83,0.0001808,2]
[363904465,1748917840836,-649.39,0.0001808,2]
[363904467,1748917840846,-815.64,0.0001808,2]
[363904469,1748917840856,-1571.32,0.0001808,2]
[363904471,1748917840865,-582.54,0.00018081,2]
[363904473,1748917840875,-440.0,0.00018082,2]
[363904474,1748917840884,-415.59363616,0.00018082,2]
[363904477,1748917840894,-513.89,0.00018082,2]
[363904479,1748917840904,-440.0,0.00018082,2]
[363904481,1748917840913,-576.76,0.00018082,2]
[363904483,1748917840923,-2271.48,0.00018082,2]
[363904485,1748917840932,-483.51,0.00018082,2]
[363904487,1748917840942,-440.0,0.00018082,2]
[363904489,1748917840953,-1052.03,0.00018082,2]
[363904491,1748917840963,-881.31,0.00018082,2]
[363904493,1748917840973,-675.32,0.00018082,2]
[363904495,1748917840983,-1552.34,0.00018082,2]
[363904497,1748917840992,-440.0,0.00018082,2]
[363904499,1748917841001,-640.89,0.00018082,2]
[363904501,1748917841011,-440.0,0.00018082,2]
[363904502,1748917841020,-440.0,0.00018082,2]
[363904505,1748917841030,-440.0,0.00018082,2]
[363904507,1748917841040,-547.92,0.00018082,2]
[363904509,1748917841051,-440.0,0.00018082,2]
[363904511,1748917841060,-731.19,0.00018082,2]
[363904513,1748917841071,-440.0,0.00018082,2]
[363904515,1748917841080,-440.0,0.00018082,2]
[363904517,1748917841090,-440.0,0.00018082,2]
[363904519,1748917841099,-1452.05,0.00018082,2]
[363904521,1748917841109,-1921.1929106,0.00018107,2]
[363904523,1748917841119,-1921.1929106,0.00018314,2]
[363904525,1748917841128,-440.0,0.00018354,2]
[363904527,1748917841138,-646.83,0.00018354,2]
[363904529,1748917841147,-649.39,0.00018354,2]
[363904531,1748917841157,-815.64,0.00018354,2]
[363904533,1748917841166,-1571.32,0.00018354,2]
[363904535,1748917841176,-582.54,0.00018355,2]
[363904537,1748917841186,-440.0,0.00018356,2]
[363904539,1748917841196,-513.89,0.00018356,2]
[363904541,1748917841205,-440.0,0.00018356,2]
[363904543,1748917841215,-576.76,0.00018356,2]
[363904545,1748917841224,-2271.48,0.00018356,2]
[363904547,1748917841233,-483.51,0.00018356,2]
[363904549,1748917841243,-440.0,0.00018356,2]
[363904551,1748917841252,-1052.03,0.00018356,2]
[363904553,1748917841262,-881.31,0.00018356,2]
[363904555,1748917841271,-675.32,0.00018356,2]
[363904557,1748917841280,-1552.34,0.00018356,2]
[363904559,1748917841290,-440.0,0.00018356,2]
[363904561,1748917841299,-640.89,0.00018356,2]
[363904563,1748917841309,-523.29251388,0.00018356,2]
[363904565,1748917841319,-440.0,0.00018356,2]
[363904567,1748917841328,-440.0,0.00018356,2]
[363904569,1748917841338,-547.92,0.00018356,2]
[363904571,1748917841347,-440.0,0.00018356,2]
[363904573,1748917841357,-731.19,0.00018356,2]
[363904574,1748917841367,-440.0,0.00018356,2]
[363904576,1748917841377,-440.0,0.00018356,2]
[363904578,1748917841387,-440.0,0.00018356,2]
[363904579,1748917841396,-1452.05,0.00018356,2]
[363904580,1748917841405,-842.5625,0.00018423,2]
[363904581,1748917841415,-160.0,0.00018423,2]
[363904582,1748917841424,-160.0,0.00018423,2]
[363904583,1748917841434,-160.0,0.00018423,2]
[363904584,1748917841444,-229.42821335,0.00018423,2]
[363904585,1748917841454,-12670.76136593,0.00018423,2]
[363904586,1748917841463,-160.0,0.00018423,2]
[363904587,1748917841472,-423.63107087,0.00018423,2]
[363904588,1748917841482,-160.0,0.00018423,2]
[363904589,1748917841492,-160.0,0.00018423,2]
[363904590,1748917841502,-212.86879254,0.00018423,2]
[363904591,1748917841511,-1018.95928991,0.00018481,2]
[363904592,1748917841521,-1921.1929106,0.00018521,2]
[363904593,1748917841531,-440.0,0.00018628,2]
[363904594,1748917841541,-646.83,0.00018628,2]
[363904595,1748917841550,-649.39,0.00018628,2]
[363904596,1748917841560,-815.64,0.00018628,2]
[363904597,1748917841573,-1571.32,0.00018628,2]
[363904598,1748917841583,-582.54,0.00018629,2]
[363904599,1748917841593,-440.0,0.0001863,2]
[363904600,1748917841603,-513.89,0.0001863,2]
[363904601,1748917841614,-440.0,0.0001863,2]
[363904602,1748917841624,-576.76,0.0001863,2]
[363904603,1748917841634,-2271.48,0.0001863,2]
[363904604,1748917841645,-483.51,0.0001863,2]
[363904605,1748917841655,-440.0,0.0001863,2]
[363904606,1748917841666,-1052.03,0.0001863,2]
[363904607,1748917841675,-881.31,0.0001863,2]
[363904608,1748917841685,-675.32,0.0001863,2]
[363904609,1748917841695,-1552.34,0.0001863,2]
[363904610,1748917841706,-440.0,0.0001863,2]
[363904611,1748917841716,-640.89,0.0001863,2]
[363904612,1748917841726,-440.0,0.0001863,2]
[363904613,1748917841736,-440.0,0.0001863,2]
[363904614,1748917841745,-547.92,0.0001863,2]
[363904615,1748917841755,-440.0,0.0001863,2]
[363904616,1748917841765,-731.19,0.0001863,2]
[363904617,1748917841774,-440.0,0.0001863,2]
[363904618,1748917841784,-440.0,0.0001863,2]
[363904619,1748917841794,-440.0,0.0001863,2]
[363904620,1748917841804,-1452.05,0.0001863,2]
[363904621,1748917841813,-615.22858746,0.00018638,2]
[363904622,1748917841823,-297.60904732,0.00018678,2]
[363904623,1748917841833,-1921.1929106,0.00018728,2]
[363904624,1748917841843,-440.0,0.00018902,2]
[363904625,1748917841852,-646.83,0.00018902,2]
[363904626,1748917841862,-649.39,0.00018902,2]
[363904627,1748917841872,-815.64,0.00018902,2]
[363904628,1748917841882,-1571.32,0.00018902,2]
[363904629,1748917841891,-582.54,0.00018903,2]
[363904630,1748917841900,-440.0,0.00018904,2]
[363904631,1748917841910,-513.89,0.00018904,2]
[363904632,1748917841919,-440.0,0.00018904,2]
[363904633,1748917841928,-576.76,0.00018904,2]
[363904634,1748917841938,-2271.48,0.00018904,2]
[363904635,1748917841947,-483.51,0.00018904,2]
[363904636,1748917841957,-440.0,0.00018904,2]
[363904637,1748917841967,-1052.03,0.00018904,2]
[363904638,1748917841976,-881.31,0.00018904,2]
[363904639,1748917841986,-675.32,0.00018904,2]
[363904640,1748917841996,-1552.34,0.00018904,2]
[363904641,1748917842005,-440.0,0.00018904,2]
[363904642,1748917842014,-640.89,0.00018904,2]
[363904643,1748917842139,-440.0,0.00018904,2]
[363904644,1748917842151,-440.0,0.00018904,2]
[363904645,1748917842161,-547.92,0.00018904,2]
[363904646,1748917842171,-440.0,0.00018904,2]
[363904647,1748917842181,-731.19,0.00018904,2]
[363904648,1748917842191,-440.0,0.00018904,2]
[363904649,1748917842200,-440.0,0.00018904,2]
[363904650,1748917842210,-440.0,0.00018904,2]
[363904651,1748917842220,-1452.05,0.00018904,2]
[363904652,1748917842230,-1921.1929106,0.00018934,2]
[363904653,1748917842239,-473.25041811,0.00018992,2]
[363904654,1748917842249,-1921.1929106,0.00019141,2]
[363904655,1748917842259,-440.0,0.00019176,2]
[363904656,1748917842268,-646.83,0.00019176,2]
[363904657,1748917842278,-649.39,0.00019176,2]
[363904658,1748917842287,-815.64,0.00019176,2]
[363904659,1748917842297,-1571.32,0.00019176,2]
[363904660,1748917842306,-168.72366,0.00019177,2]
[363904661,1748917842316,-168.72366,0.00019177,2]
[363904662,1748917842326,-584.829584,0.00019177,2]
[363904663,1748917842336,-584.829584,0.00019177,2]
[363904664,1748917842345,-582.54,0.00019177,2]
[363904665,1748917842354,-440.0,0.00019178,2]
[363904666,1748917842365,-440.0,0.00019178,2]
[363904667,1748917842374,-440.0,0.00019178,2]
[363904668,1748917842384,-440.0,0.00019178,2]
[363904669,1748917842393,-305.0622353,0.00019178,2]
[363904670,1748917842403,-440.0,0.00019178,2]
[363904671,1748917842412,-513.89,0.00019178,2]
[363904672,1748917842422,-440.0,0.00019178,2]
[363904673,1748917842432,-576.76,0.00019178,2]
[363904674,1748917842442,-2271.48,0.00019178,2]
[363904675,1748917842453,-483.51,0.00019178,2]
[363904676,1748917842463,-440.0,0.00019178,2]
[363904677,1748917842473,-1052.03,0.00019178,2]
[363904678,1748917842483,-881.31,0.00019178,2]
[363904679,1748917842492,-675.32,0.00019178,2]
[363904680,1748917842503,-1552.34,0.00019178,2]
[363904681,1748917842512,-440.0,0.00019178,2]
[363904682,1748917842522,-640.89,0.00019178,2]
[363904683,1748917842532,-218.9478231,0.00019178,2]
[363904684,1748917842541,-440.0,0.00019178,2]
[363904685,1748917842551,-547.92,0.00019178,2]
[363904686,1748917842560,-440.0,0.00019178,2]
[363904687,1748917842575,-731.19,0.00019178,2]
[363904688,1748917842585,-440.0,0.00019178,2]
[363904689,1748917842595,-440.0,0.00019178,2]
[363904690,1748917842605,-440.0,0.00019178,2]
[363904691,1748917842616,-1452.05,0.00019178,2]
[363904692,1748917842625,-500.0,0.00019178,2]
[363904693,1748917842635,-318.86061749,0.00019178,2]
[363904694,1748917842645,-200.813813,0.00019178,2]
[363904695,1748917842656,-671.53550906,0.00019219,2]
[363904696,1748917842666,-1921.1929106,0.00019348,2]
[363904697,1748917842675,-440.0,0.0001945,2]
[363904698,1748917842684,-646.83,0.0001945,2]
[363904699,1748917842694,-649.39,0.0001945,2]
[363904700,1748917842704,-815.64,0.0001945,2]
[363904701,1748917842715,-1571.32,0.0001945,2]
[363904702,1748917842725,-582.54,0.00019451,2]
[363904703,1748917842734,-440.0,0.00019452,2]
[363904704,1748917842744,-513.89,0.00019452,2]
[363904705,1748917842755,-440.0,0.00019452,2]
[363904706,1748917842765,-576.76,0.00019452,2]
[363904707,1748917842775,-2271.48,0.00019452,2]
[363904708,1748917842784,-483.51,0.00019452,2]
[363904709,1748917842794,-440.0,0.00019452,2]
[363904710,1748917842803,-1052.03,0.00019452,2]
[363904711,1748917842813,-881.31,0.00019452,2]
[363904712,1748917842823,-675.32,0.00019452,2]
[363904713,1748917842833,-1552.34,0.00019452,2]
[363904714,1748917842843,-440.0,0.00019452,2]
[363904715,1748917842853,-640.89,0.00019452,2]
[363904716,1748917842863,-440.0,0.00019452,2]
[363904717,1748917842872,-547.92,0.00019452,2]
[363904718,1748917842882,-440.0,0.00019452,2]
[363904719,1748917842891,-731.19,0.00019452,2]
[363904720,1748917842901,-440.0,0.00019452,2]
[363904721,1748917842909,-440.0,0.00019452,2]
[363904722,1748917842918,-440.0,0.00019452,2]
[363904723,1748917842928,-1452.05,0.00019452,2]
[363904724,1748917842938,-1921.1929106,0.00019555,2]
[363904725,1748917842947,-470.16,0.000196,2]
[363904726,1748917842957,-305.722,0.0001963,2]
[363904727,1748917842967,-297.60904732,0.00019712,2]
[363904728,1748917842977,-440.0,0.00019724,2]
[363904729,1748917842987,-646.83,0.00019724,2]
[363904730,1748917842997,-649.39,0.00019724,2]
[363904731,1748917843007,-815.64,0.00019724,2]
[363904732,1748917843016,-1571.32,0.00019724,2]
[363904733,1748917843026,-582.54,0.00019725,2]
[363904734,1748917843036,-440.0,0.00019726,2]
[363904735,1748917843046,-513.89,0.00019726,2]
[363904736,1748917843056,-440.0,0.00019726,2]
[363904737,1748917843066,-576.76,0.00019726,2]
[363904738,1748917843076,-2271.48,0.00019726,2]
[363904739,1748917843086,-483.51,0.00019726,2]
[363904740,1748917843096,-440.0,0.00019726,2]
[363904743,1748917843106,-1052.03,0.00019726,2]
[363904745,1748917843115,-881.31,0.00019726,2]
[363904747,1748917843125,-675.32,0.00019726,2]
[363904749,1748917843135,-1552.34,0.00019726,2]
[363904751,1748917843144,-440.0,0.00019726,2]
[363904754,1748917843154,-640.89,0.00019726,2]
[363904756,1748917843164,-440.0,0.00019726,2]
[363904757,1748917843174,-547.92,0.00019726,2]
[363904758,1748917843184,-440.0,0.00019726,2]
[363904759,1748917843194,-731.19,0.00019726,2]
[363904760,1748917843204,-440.0,0.00019726,2]
[363904761,1748917843214,-440.0,0.00019726,2]
[363904762,1748917843223,-440.0,0.00019726,2]
[363904763,1748917843232,-1452.05,0.00019726,2]
[363904764,1748917843242,-1921.1929106,0.00019762,2]
[363904765,1748917843252,-1000.0,0.00019964,2]
[363904766,1748917843262,-1921.1929106,0.00019969,2]
[363904767,1748917843272,-186.0,0.0001999,2]
[363904768,1748917843282,-184.32138049,0.0001999,2]
[363904769,1748917843292,-186.0,0.0001999,3]
[363904770,1748917843302,-440.0,0.00019998,2]
[363904771,1748917843311,-646.83,0.00019998,2]
[363904772,1748917843321,-649.39,0.00019998,2]
[363904773,1748917843330,-815.64,0.00019998,2]
[363904774,1748917843340,-1571.32,0.00019998,2]
[363904775,1748917843352,-168.72366,0.00019999,2]
[363904776,1748917843362,-168.72366,0.00019999,2]
[363904777,1748917843372,-582.54,0.00019999,2]
[363904778,1748917843381,-189.47995318,0.0002,2]
[363904779,1748917843391,-584.829584,0.0002,2]
[363904780,1748917843402,-584.829584,0.0002,2]
[363904781,1748917843411,-440.0,0.0002,2]
[363904782,1748917843421,-513.89,0.0002,2]
[363904783,1748917843431,-440.0,0.0002,2]
[363904784,1748917843440,-576.76,0.0002,2]
[363904785,1748917843449,-2271.48,0.0002,2]
[363904786,1748917843459,-483.51,0.0002,2]
[363904787,1748917843468,-440.0,0.0002,2]
[363904788,1748917843478,-1052.03,0.0002,2]
[363904789,1748917843488,-881.31,0.0002,2]
[363904790,1748917843498,-675.32,0.0002,2]
[363904791,1748917843508,-1552.34,0.0002,2]
[363904792,1748917843518,-19432.0,0.0002,2]
[363904793,1748917843527,-440.0,0.0002,2]
[363904794,1748917843536,-640.89,0.0002,2]
[363904795,1748917843545,-1000.0383099,0.0002,2]
[363904796,1748917843555,-440.0,0.0002,2]
[363904797,1748917843565,-547.92,0.0002,2]
[363904798,1748917843579,-222.74908231,0.0002,2]
[363904799,1748917843589,-731.19,0.0002,2]
[363904800,1748917843598,-294.49016363,0.0002,2]
[363904801,1748917843608,-440.0,0.0002,2]
[363904802,1748917843619,-525.494288,0.0002,2]
[363904803,1748917843628,-1452.05,0.0002,2]
[363904804,1748917843638,-500.0,0.00020138,2]
[363904805,1748917843649,-501.56031537,0.00020138,2]
[363904806,1748917843658,-500.0,0.00020138,2]
[363904807,1748917843668,-500.0,0.00020138,2]
[363904808,1748917843677,-1921.1929106,0.00020176,2]
[363904809,1748917843687,-189.398727,0.00020187,2]
[363904810,1748917843696,-440.0,0.00020272,2]
[363904811,1748917843706,-646.83,0.00020272,2]
[363904812,1748917843715,-649.39,0.00020272,2]
[363904813,1748917843725,-815.64,0.00020272,2]
[363904814,1748917843735,-1571.32,0.00020272,2]
[363904815,1748917843745,-440.0,0.00020273,2]
[363904816,1748917843755,-513.89,0.00020273,2]
[363904817,1748917843764,-231.35642455,0.00020273,2]
[363904818,1748917843773,-576.76,0.00020273,2]
[363904819,1748917843783,-2271.48,0.00020273,2]
[363904820,1748917843792,-582.54,0.00020273,2]
[363904821,1748917843801,-483.51,0.00020273,2]
[363904822,1748917843811,-576.29981414,0.00020273,2]
[363904823,1748917843821,-1052.03,0.00020273,2]
[363904824,1748917843830,-881.31,0.00020273,2]
[363904825,1748917843839,-675.32,0.00020273,2]
[363904826,1748917843849,-1552.34,0.00020273,2]
[363904827,1748917843858,-440.0,0.00020273,2]
[363904828,1748917843867,-640.89,0.00020273,2]
[363904829,1748917843876,-505.19549287,0.00020273,2]
[363904830,1748917843887,-547.92,0.00020273,2]
[363904831,1748917843896,-731.19,0.00020273,2]
[363904832,1748917843906,-440.0,0.00020273,2]
[363904833,1748917843915,-1452.05,0.00020273,2]
[363904834,1748917843925,-1921.1929106,0.00020383,3]
[363904835,1748917843935,-500.0,0.000205,2]
[363904836,1748917843944,-440.0,0.00020546,2]
[363904837,1748917843954,-646.83,0.00020546,2]
[363904838,1748917843964,-649.39,0.00020546,2]
[363904839,1748917843974,-815.64,0.00020546,2]
[363904840,1748917843984,-1571.32,0.00020546,2]
[363904841,1748917843993,-440.0,0.00020547,2]
[363904842,1748917844004,-513.89,0.00020547,2]
[363904843,1748917844013,-576.76,0.00020547,2]
[363904844,1748917844023,-2271.48,0.00020547,2]
[363904845,1748917844033,-582.54,0.00020547,2]
[363904846,1748917844043,-483.51,0.00020547,2]
[363904847,1748917844054,-1052.03,0.00020547,2]
[363904848,1748917844064,-881.31,0.00020547,2]
[363904849,1748917844074,-675.32,0.00020547,2]
[363904850,1748917844083,-1552.34,0.00020547,2]
[363904851,1748917844093,-440.0,0.00020547,2]
[363904852,1748917844102,-640.89,0.00020547,2]
[363904853,1748917844113,-547.92,0.00020547,2]
[363904854,1748917844123,-731.19,0.00020547,2]
[363904855,1748917844132,-440.0,0.00020547,2]
[363904856,1748917844141,-1452.05,0.00020547,2]
[363904857,1748917844150,-1921.1929106,0.0002059,3]
[363904858,1748917844158,-503.39546606,0.00020686,2]
[363904859,1748917844166,-505.69346178,0.00020686,2]
[363904860,1748917844176,-1000.0,0.00020686,2]
[363904861,1748917844185,-297.60904732,0.00020747,2]
[363904862,1748917844194,-1921.1929106,0.00020797,4]
[363904863,1748917844202,-440.0,0.0002082,2]
[363904864,1748917844211,-646.83,0.0002082,2]
[363904865,1748917844219,-649.39,0.0002082,2]
[363904866,1748917844228,-815.64,0.0002082,2]
[363904867,1748917844236,-1571.32,0.0002082,2]
[363904868,1748917844245,-168.72366,0.00020821,2]
[363904869,1748917844254,-168.72366,0.00020821,2]
[363904870,1748917844263,-440.0,0.00020821,2]
[363904871,1748917844271,-513.89,0.00020821,2]
[363904872,1748917844280,-576.76,0.00020821,2]
[363904873,1748917844289,-2271.48,0.00020821,2]
[363904874,1748917844297,-582.54,0.00020821,2]
[363904875,1748917844306,-483.51,0.00020821,2]
[363904876,1748917844316,-1052.03,0.00020821,2]
[363904877,1748917844326,-881.31,0.00020821,2]
[363904878,1748917844335,-675.32,0.00020821,2]
[363904879,1748917844345,-1552.34,0.00020821,2]
[363904880,1748917844354,-440.0,0.00020821,2]
[363904881,1748917844363,-640.89,0.00020821,2]
[363904882,1748917844373,-547.92,0.00020821,2]
[363904883,1748917844383,-731.19,0.00020821,2]
[363904884,1748917844393,-440.0,0.00020821,2]
[363904885,1748917844403,-1452.05,0.00020821,2]
[363904886,1748917844413,-732.716885,0.00020904,2]
[363904887,1748917844422,-500.0,0.00021,2]
[363904888,1748917844432,-186.0,0.00021,3]
[363904889,1748917844442,-186.0,0.00021,3]
[363904890,1748917844452,-186.0,0.00021,3]
[363904891,1748917844462,-1921.1929106,0.00021003,4]
[363904892,1748917844472,-584.829584,0.00021015,2]
[363904893,1748917844484,-584.829584,0.00021015,2]
[363904894,1748917844495,-175.81648314,0.00021015,2]
[363904895,1748917844506,-152.37664978,0.00021015,2]
[363904896,1748917844515,-500.0,0.00021015,2]
[363904897,1748917844525,-500.0,0.00021015,2]
[363904898,1748917844535,-500.0,0.00021015,2]
[363904899,1748917844545,-500.0,0.00021015,2]
[363904900,1748917844556,-500.0,0.00021015,2]
[363904901,1748917844568,-207.4,0.00021015,2]
[363904902,1748917844580,-500.0,0.00021015,2]
[363904903,1748917844590,-500.0,0.00021015,2]
[363904904,1748917844601,-500.0,0.00021015,2]
[363904905,1748917844613,-500.0,0.00021015,2]
[363904906,1748917844622,-5000.0,0.00021015,2]
[363904907,1748917844632,-500.0,0.00021015,2]
[363904908,1748917844643,-500.0,0.00021015,2]
[363904909,1748917844653,-500.0,0.00021015,2]
[363904910,1748917844663,-500.0,0.00021015,2]
[363904911,1748917844672,-3898.2834867,0.00021015,2]
[363904912,1748917844682,-500.0,0.00021015,2]
[363904913,1748917844691,-500.0,0.00021015,2]
[363904914,1748917844700,-500.0,0.00021015,2]
[363904915,1748917844710,-500.0,0.00021015,2]
[363904916,1748917844719,-500.0,0.00021015,2]
[363904917,1748917844730,-500.0,0.00021015,2]
[363904918,1748917844740,-500.0,0.00021015,2]
[363904919,1748917844749,-500.0,0.00021015,2]
[363904920,1748917844760,-500.0,0.00021015,2]
[363904921,1748917844770,-500.0,0.00021015,2]
[363904922,1748917844779,-500.0,0.00021015,2]
[363904923,1748917844789,-500.0,0.00021015,2]
[363904924,1748917844799,-500.0,0.00021015,2]